Cogmind - Beta 10.2 @@@ ROGUE MODE // 2021.12.07 @ 19:19:16 Player: MethodicalFrog Result: Destroyed by G-34 Mercenary with Small Laser Performance ------------- Evolutions (0) 0 Regions Visited (1) 200 Robots Destroyed (15) 75 Value Destroyed (268) 268 Prototype IDs (0) 0 Alien Tech Used (0) 0 Bonus (0) 0 TOTAL SCORE: 543 Bonus ------- None Cogmind --------- Core Integrity 0/250 Matter 378/400 Energy 125/125 System Corruption 2% Temperature Cool (198) Movement Rolling (90) Ox1 Location -10/Materials Parts ------- > --- POWER (1) -------- Light Ion Engine > --- PROPULSION (2) --- Wheel Wheel > --- UTILITY (2) ------ Large Storage Unit Medium Matter Pod > --- WEAPON (2) ------- Light Assault Rifle Light Assault Rifle > --- INVENTORY (10) --- Ion Engine Light Ion Engine Light Ion Engine Wheel Wheel Heat Sink Large Matter Pod (150) Sensor Array Signal Interpreter Light Cannon Peak State ------------ > --- POWER ------------ Ion Engine > --- PROPULSION ------- Light Treads Light Treads > --- UTILITY ---------- Large Storage Unit Medium Matter Pod > --- WEAPON ----------- EM Pulse Gun EM Pulse Gun > --- INVENTORY -------- Light Ion Engine Light Ion Engine Structural Scanner Signal Interpreter EM Pulse Gun Light Assault Rifle Light Assault Rifle Light Assault Rifle Light Assault Rifle Mining Laser [Rating: 8] Favorites ----------- Power Light Ion Engine Engine Light Ion Engine Propulsion Light Treads Treads Light Treads Wheel Wheel Utility Large Storage Unit Storage Large Storage Unit Weapon EM Pulse Gun Energy Gun EM Pulse Gun Ballistic Gun Light Assault Rifle Build | -11 -10 ------- Run | Scr Mat Slots Evolved . | . . Power . | . . Propulsion . | . . Utility . | . . Weapon . | . . Parts Attached 24 | 6 18 Power 3 | 1 2 Engine 3 | 1 2 Core . | . . Reactor . | . . Propulsion 5 | 2 3 Treads 2 | 2 . Leg . | . . Wheel 3 | . 3 Hover . | . . Flight . | . . Utility 3 | 1 2 Device . | . . Storage 3 | 1 2 Processor . | . . Hackware . | . . Protection . | . . Artifact . | . . Weapon 13 | 2 11 Energy Gun 6 | 2 4 Energy Cannon . | . . Ballistic Gun 7 | . 7 Ballistic Cannon . | . . Launcher . | . . Special Weapon . | . . Impact Weapon . | . . Slashing Weapon . | . . Piercing Weapon . | . . Special Melee Weapon . | . . Unidentified Prototypes . | . . Parts Lost 5 | . 5 Power . | . . Propulsion 1 | . 1 Utility . | . . Weapon 4 | . 4 Highest Loss Streak 3 | . 3 Average Slot Usage (%) 97 | . 97 Engine 14 | . 14 Treads 18 | . 18 Wheel 8 | . 8 Storage 27 | . 27 Energy Gun 15 | . 15 Ballistic Gun 11 | . 11 Naked Turns . | . . Heaviest Build 27 | 13 27 Greatest Support 40 | 40 40 Greatest Overweight (x) 7 | 1 7 Average Overweight (x) . | . . Largest Inventory Capacity 10 | 6 10 Average Capacity 9 | 4 9 Most Carried 10 | 4 10 Average Carried 7 | 1 7 Final Capacity 10 | 6 10 Final Carried 10 | 2 10 Class Distribution -------------------- 97% | Mutant Dominant Class ---------------- Mutant | -10/Materials Resources | -11 -10 ----------- Run | Scr Mat Matter Collected 695 | 223 472 Remotely . | . . Salvage Created 476 | . 476 Parts 31 | . 31 Haulers Intercepted . | . . Recyclers Shooed 2 | . 2 Parts Field Recycled . | . . Retrieved Matter . | . . Parts Self-Destructed . | . . Prevented . | . . Kills | -11 -10 ------- Run | Scr Mat Combat Hostiles Destroyed 10 | . 10 Guns 10 | . 10 Classes Destroyed 5 | . 5 Builder 1 | . 1 Recycler 1 | . 1 Watcher 3 | . 3 Swarmer 6 | . 6 Grunt 4 | . 4 Best Kill Streak 4 | . 4 Combat Bots Only 3 | . 3 Max Kills in Single Turn 1 | . 1 Gunslinging . | . . Exploded . | . . Melee . | . . Uniques/NPCs Destroyed . | . . Combat | -11 -10 -------- Run | Scr Mat Damage Taken 902 | . 902 Core 252 | . 252 Absorbed by Shields . | . . Core Remaining (%) 100 | 100 . Volleys Fired 70 | . 70 Largest 2 | . 2 Hottest 80 | . 80 Shots Fired 128 | . 128 Gun 128 | . 128 Cannon . | . . Launcher . | . . Special . | . . Kinetic 42 | . 42 Thermal . | . . Explosive . | . . Electromagnetic 86 | . 86 Robot Hit Streak 11 | . 11 Robot Miss Streak 7 | . 7 Penetration Max . | . . Secondary Targets 3 | . 3 Max Gunslinging Chain 1 | . 1 Shots Hit Robots 70 | . 70 Core Hits 21 | . 21 Critical Hits 1 | . 1 Critical Kills . | . . Critical Parts Destroyed 1 | . 1 Melee Attacks . | . . Impact . | . . Slashing . | . . Piercing . | . . Sneak Attacks . | . . Combat Hostiles . | . . Follow-up Attacks . | . . Damage Inflicted 935 | . 935 Guns 869 | . 869 Cannons . | . . Explosions 66 | . 66 Melee . | . . Ramming . | . . Kinetic 155 | . 155 Thermal 66 | . 66 Explosive . | . . Electromagnetic 714 | . 714 Impact . | . . Slashing . | . . Piercing . | . . Highest Corruption 2 | . 2 Average Corruption 2 | . 2 Corruption Purged . | . . Effects 14 | . 14 Message Errors 6 | . 6 Heat Flow Errors 4 | . 4 Energy Discharges 2 | . 2 Targeting Errors 1 | . 1 Weapon Failures 1 | . 1 Overload Shots . | . . Overflow Damage 2 | . 2 Projectiles . | . . Explosions 2 | . 2 Melee . | . . Knockbacks . | . . Impact . | . . Kinetic . | . . Secondary . | . . Self-Inflicted Damage 37 | . 37 Shots 1 | . 1 Rammed . | . . Targets Rammed . | . . Kicked . | . . Crushed . | . . Highest Temperature 253 | . 253 Average Temperature 84 | . 84 Received Heat Transfer 276 | . 276 Effects 1 | . 1 Energy Bleed 1 | . 1 Siege Activations . | . . Robots Corrupted 2 | . 2 Combat Hostiles . | . . Parts Fried 5 | . 5 Impact Corruptions . | . . Robots Melted . | . . Combat Hostiles . | . . Parts Melted . | . . Heat Transferred 150 | . 150 Parts Sabotaged . | . . Parts Stolen . | . . Parts Stripped . | . . Power Chain Reactions 1 | . 1 Missiles Intercepted . | . . Alert | -11 -10 ------- Run | Scr Mat Peak Influence 141 | . 141 Initial . | . . Average 64 | . 67 Maximum Alert Level . | . . Low Security (%) 100 | 100 100 Level 1 . | . . Level 2 . | . . Level 3 . | . . Level 4 . | . . Level 5 . | . . High Security . | . . Max Security . | . . Squads Dispatched 1 | . 1 Investigation 1 | . 1 Extermination . | . . Reinforcement . | . . Assault . | . . Garrison . | . . Intercept . | . . Construction Impeded . | . . Haulers Reinforced . | . . Stealth | -11 -10 --------- Run | Scr Mat Distress Signals 1 | . 1 Communications Jammed . | . . Distress Signals . | . . Times Spotted 22 | . 22 Peak Tracking Total 5 | . 5 Tactical Retreats 1 | . 1 Traps | -11 -10 ------- Run | Scr Mat Traps Triggered 3 | . 3 Indirectly . | . . Trap Hack Attempts . | . . Triggered . | . . Disarmed . | . . Reprogrammed . | . . Reused . | . . Traps Extracted . | . . Installed . | . . Triggered . | . . Machines | -11 -10 ---------- Run | Scr Mat Machines Disabled . | . . Max in Single Turn . | . . Machines Sabotaged . | . . Garrisons Compromised . | . . Overloaded Fab Kills . | . . Fab Network Shutdowns . | . . Hacking | -11 -10 --------- Run | Scr Mat Machines Accessed 6 | . 6 Terminals 6 | . 6 Fabricators . | . . Repair Stations . | . . Recycling Units . | . . Scanalyzers . | . . Garrison Access . | . . Total Hacks 11 | . 11 Successful 11 | . 11 Failed . | . . Catastrophic . | . . Database Lockouts . | . . Manual . | . . Terminals 11 | . 11 Fabricators . | . . Repair Stations . | . . Recycling Units . | . . Scanalyzers . | . . Garrison Access . | . . Terminal Hacks 11 | . 11 Record 6 | . 6 Alert Level 1 | . 1 Locate Traps 2 | . 2 Investigation Status 1 | . 1 Hauler Manifests 1 | . 1 Fabricator Hacks . | . . Repair Station Hacks . | . . Recycling Unit Hacks . | . . Scanalyzer . | . . Garrison Access Hacks . | . . Unauthorized Hacks . | . . Terminals . | . . Fabricators . | . . Repair Stations . | . . Recycling Units . | . . Scanalyzers . | . . Garrison Access . | . . Data Cores Recovered . | . . Used . | . . Hacking Detections 1 | . 1 Full Trace Events . | . . Feedback Events . | . . Feedback Blocked . | . . Robot Schematics Acquired . | . . Robots Built . | . . Matter . | . . Time . | . . Total Robot Build Rating . | . . Part Schematics Acquired . | . . Parts Built . | . . Matter . | . . Time . | . . Total Part Build Rating . | . . Parts Repaired . | . . Time . | . . Parts Recycled . | . . Recycled Matter . | . . Retrieved Matter . | . . Retrieved Components . | . . Parts Scanalyzed . | . . Part Schematics Acquired . | . . Parts Damaged . | . . Bothacking | -11 -10 ------------ Run | Scr Mat Used RIF Installer . | . . Robots Hacked . | . . Non-combat . | . . Combat . | . . Robot Hacks Applied . | . . Relay Couplers Released . | . . Robots Rewired . | . . Allies Hacked . | . . Hacks Repelled . | . . Allies | -11 -10 -------- Run | Scr Mat Total Allies . | . . Largest Group . | . . Highest-Rated Group . | . . Highest-Rated Ally . | . . Total Orders . | . . Ally Attacks . | . . Total Damage . | . . Kills . | . . Allies Corrupted . | . . Allies Melted . | . . Intel | -11 -10 ------- Run | Scr Mat Robot Analysis Total . | . . Derelict Logs Recovered . | . . Drone Launches . | . . Drone Recoveries . | . . Exploration | -11 -10 ------------- Run | Scr Mat Turns Passed 1268 | 66 1202 Spaces Moved 768 | 37 731 Core 9 | 7 2 Treads 429 | 30 399 Legs . | . . Wheels 330 | . 330 Hover . | . . Flight . | . . Fastest Speed 50 | 50 80 Average Speed 130 | 145 129 Slowest Speed 400 | 160 400 Overloaded Moves . | . . Propulsion Burnouts . | . . Robots Hopped . | . . Cave-ins Triggered . | . . Exploration Rate (%) 46 | 3 90 Regions Visited 1 Branch Regions . Pre-discovered Areas . | . . Known Exits Taken . | . . Unknown Exits Taken 1 | 1 . Scrap Searched . | . . Spaces Dug . | . . Terrain Destroyed 3 | . 3 Melee . | . . Projectile . | . . AOE 3 | . 3 Terrain Rammed . | . . Walls Destroyed . | . . Machines Disabled . | . . Actions | -11 -10 --------- Run | Scr Mat Total 923 | 49 874 Wait 7 | . 7 Move 767 | 36 731 Hop . | . . Pick Up 37 | 7 30 Fast Attach 3 | 1 2 Attach 18 | 5 13 Detach 1 | . 1 Swap 3 | . 3 Drop 17 | . 17 Fire 70 | . 70 Melee . | . . Ram . | . . Kick . | . . Crush . | . . Escape Stasis . | . . Rewire . | . . Trap . | . . Miscellaneous . | . . Route ------- -11/Scrapyard -10/Materials (discovered 4 exits: [*Mat x3] / [*Min]) History --------- Turn | Location | Event 22 | -11/Scrapyard | Discovered new exit (range 16) 67 | -11/Scrapyard | Entered Materials 265 | -10/Materials | Discovered new exit (range 10) 313 | -10/Materials | Build established: Mutant 638 | -10/Materials | Discovered new exit (range 15) 853 | -10/Materials | Core integrity fell below 50% 896 | -10/Materials | Lost 3 parts (1n2w) 1006 | -10/Materials | Core integrity fell below 20% 1104 | -10/Materials | Discovered new exit (range 8) 1243 | -10/Materials | Discovered new exit (range 16) 1269 | -10/Materials | Destroyed by G-34 Mercenary with Small Laser Last Messages --------------- Connecting with Terminal... >>Alert(Check) Current Alert Level: Low Security >>Enumerate(Investigations) Retrieving latest reported positions... No active investigation squads found. System corrupted: Lgt. Assault Rifle jammed. W-16 Scout destroyed. Acquired 25 matter. Dropped Lgt. Ion Engine. Acquired Lgt. Ion Engine. EXIT=FOUND ,3,GB:Y2,=U9IASLC6O%S3Y< YNX D4QCGMOW R-06 Scavenger collects Signal Interpreter. A-02 Transporter suffers critical hit. Destroyed Lgt. Treads. R-06 Scavenger collects Hover Unit. R-06 Scavenger collects Visual Processing Unit. R-06 Scavenger collects Lgt. Ion Engine. System corrupted: Heat flow error (+186). Map ----- +----------------------------------------------------+ | | | | | | | | | | | | | | | | | | | | | | | | | | | | | ?????????????????????????????????????????????????? | | ?????????????????????????#################???????? | | ?????????????????????????# #???????? | | ?????????????????????????# #???????? | | ?????????????????????????# #???????? | | ?????????????????????????# #???????? | | ?????????????????????????# #???????? | | ?????????????????????????# ########## | | ?????????????????????????# # = | | ??????????+########+###### % + | | ??????? a ###### """ """ | | ??????? < g @ #????# """ """ | | ??????? u #????# """ """ | | ????????########## #################### | | ?????????????????# #???????????# ^ ^T # | | ?????????????????# #???????????# ^^ # | | ########?????????# +???????????#^""" #######+## | | #?????????# #???????????# """ #???# | | "" """ ########### #???????????# """ #???# | | "" """ + #???????????# =#???# | | "" """ ############+#####????????#+##+####### | | "" """ #??????# #######??# | | "" """ #??????# """ # T !#??# ## | | #??????# """ # #??# #? | | #??????# """ # """#### #? | | ##+############ " " # """# ######### #? | | # + "R" # """# #?#######+## | | # ########### """ # + #?# | | # #?????????# # """# #?# | | # #?????????#+######### """# ### | | # #?????????# #???????# """## # """ | | # #?????????# #???????# ## + """"" | | # #?????????# #???????# ## # """"" | | # #???????### ###???########## # """"" | | # #???????# ##### ## # """ | | # #???????# ########## | +----------------------------------------------------+ Best States ------------- Heat Dissipation 25 Energy Generation 10 Energy Capacity 250 Matter Stores 400 Matter Capacity 400 Sight Range 16 Terrain Scan Density 10 Evasion (%) 42 Recoil Reduction 2 Item Schematics ----------------- None Robot Schematics ------------------ None Fabricated ------------ Nothing Alien Tech Used ----------------- None Achievements -------------- Power Corrupts Shopping List Challenges ------------ None Game ------ Seed MassHellfireBeam Manual? 0 Play Time 00:23:31 Cumulative 3.9 hours Start 2021.12.07 @ 17:24:26 End 2021.12.07 @ 19:19:16 Sessions 3 Manual Loads 0 Difficulty Rogue Special Mode None Game No. 3 Rogue 3 Adventurer 0 Explorer 0 Win Type - Total 0 Types 0/0/0/0/0/0/0/0/0 Lore% 4 Gallery% 6 Achievement% 8 Wizard Run 0 Options --------- ASCII 0 Keyboard 0 Movement Mouse Keybinds 0 Fullscreen 1 Font 24/Smallcaps Map View 76x50 Tactical HUD 0 Map Filters NONE Filters NONE Steam 1 RUN: 9d4a1374-8d53-4dbb-975b-e68b92995e1c